[Event "Istanbul Open 2019"]
[Site "Istanbul"]
[Date "2019.08.27"]
[Round "3.16"]
[White "Amanmuradow, Atajan"]
[Black "Satici, Aydin"]
[Result "1/2-1/2"]
[ECO "A48"]
[WhiteElo "1794"]
[BlackElo "1598"]
[Annotator "NA"]
[PlyCount "122"]
[EventDate "2019.08.26"]
[EventType "swiss"]
[EventCountry "TUR"]
[SourceTitle "playchess.com"]
[Source "ChessBase"]
[SourceQuality "1"]
[TimeControl "5400+30"]

1. Nf3 {[%emt 0:00:30]} g6 {[%emt 0:00:30]} 2. d4 {[%emt 0:00:00]} Nf6 {[%emt 0:00:30]} 3. Bf4 {[%emt 0:00:00]} d6 {[%emt 0:00:30]} 4. c3 {[%emt 0:00:30]} Bg7 {[%emt 0:00:00]} 5. Nbd2 {[%emt 0:00:00]} O-O {[%emt 0:01:00]} 6. e4 {[%emt 0:00:00]} Nc6 {[%emt 0:02:30]} 7. Be2 {[%emt 0:02:30]} Nd7 {[%emt 0:01:30]} 8. Bg5 {[%emt 0:07:30]} h6 {[%emt 0:01:30]} 9. Bh4 {[%emt 0:03:30]} Qe8 {[%emt 0:01:30]} 10. O-O {[%emt 0:04:30]} e5 {[%emt 0:01:30]} 11. dxe5 {[%emt 0:00:30]} Ndxe5 {[%emt 0:00:30]} 12. Nxe5 {[%emt 0:03:30]} dxe5 {[%emt 0:01:30]} 13. Qc2 {[%emt 0:04:30]} Be6 {[%emt 0:03:30]} 14. Nc4 {[%emt 0:02:30]} a6 {[%emt 0:02:30]} 15. Rad1 {[%emt 0:03:30]} g5 {[%emt 0:00:30]} 16. Bg3 {[%emt 0:01:30]} Rd8 {[%emt 0:01:30]} 17. Ne3 {[%emt 0:01:30]} f6 {[%emt 0:07:30]} 18. Nf5 {[%emt 0:04:30]} Qf7 {[%emt 0:01:30]} 19. b3 {[%emt 0:04:30]} Rfe8 {[%emt 0:04:30]} 20. f3 {[%emt 0:04:30]} Bf8 {[%emt 0:02:30]} 21. Bf2 {[%emt 0:00:30]} Kh7 {[%emt 0:06:30]} 22. Rfe1 {[%emt 0:06:30]} Be7 {[%emt 0:03:30]} 23. Bf1 {[%emt 0:01:30]} Rxd1 {[%emt 0:02:30]} 24. Rxd1 {[%emt 0:00:30]} Rd8 {[%emt 0:00:30]} 25. Rxd8 {[%emt 0:11:30]} Bxd8 {[%emt 0:00:30]} 26. Ne3 {[%emt 0:01:30]} Kg7 {[%emt 0:02:30]} 27. Nf5+ {[%emt 0:11:30]} Kh7 {[%emt 0:01:30]} 28. Bc5 {[%emt 0:03:04]} Ne7 {[%emt 0:04:30]} 29. Qd2 {[%emt 0:05:19]} Qe8 {[%emt 0:01:30]} 30. Ne3 {[%emt 0:04:48]} Qd7 {[%emt 0:05:30]} 31. Qxd7 {[%emt 0:03:39]} Bxd7 {[%emt 0:00:00]} 32. Bc4 {[%emt 0:00:47]} Kg7 {[%emt 0:02:00]} 33. Kf2 {[%emt 0:00:03]} b5 {[%emt 0:00:30]} 34. Bd3 {[%emt 0:00:06]} c6 {[%emt 0:04:30]} 35. c4 {[%emt 0:02:58]} Be6 {[%emt 0:05:30]} 36. Ke2 {[%emt 0:01:04]} Ng6 {[%emt 0:02:30]} 37. g3 {[%emt 0:00:01]} Be7 {[%emt 0:00:30]} 38. Nf5+ {[%emt 0:01:07]} Bxf5 {[%emt 0:01:30]} 39. Bxe7 {[%emt 0:01:38]} Nxe7 {[%emt 0:02:30]} 40. exf5 {[%emt 0:00:02]} b4 {[%emt 0:04:30]} 41. Be4 {[%emt 0:01:23]} Kf7 {[%emt 0:00:31]} 42. Kd3 {[%emt 0:00:32]} c5 {[%emt 0:00:48]} 43. g4 {[%emt 0:00:44]} Ke8 {[%emt 0:00:36]} 44. Bb7 {[%emt 0:00:20]} a5 {[%emt 0:00:15]} 45. Ke4 {[%emt 0:00:14]} Kd7 {[%emt 0:01:54]} 46. Ba6 {[%emt 0:00:27]} Kd6 {[%emt 0:01:03]} 47. Bb7 {[%emt 0:00:13]} Kc7 {[%emt 0:00:28]} 48. Bd5 {[%emt 0:01:20]} Kd6 {[%emt 0:00:53]} 49. Bb7 {[%emt 0:00:03]} Kc7 {[%emt 0:00:17]} 50. Bd5 {[%emt 0:00:12]} Nc8 {[%emt 0:00:52]} 51. Bf7 {[%emt 0:00:02]} Nb6 {[%emt 0:00:06]} 52. Be8 {[%emt 0:00:12]} Kd6 {[%emt 0:00:47]} 53. Bb5 {[%emt 0:00:09]} Na8 {[%emt 0:00:00]} 54. Ba6 {[%emt 0:00:41]} Nc7 {[%emt 0:00:34]} 55. Bb7 {[%emt 0:00:10]} Kd7 {[%emt 0:00:30]} 56. Bd5 {[%emt 0:00:44]} Ne8 {[%emt 0:00:30]} 57. Be6+ {[%emt 0:00:00]} Kc6 {[%emt 0:01:39]} 58. Bd5+ {[%emt 0:00:00]} Kd6 {[%emt 0:00:00]} 59. Be6 {[%emt 0:00:35]} Nc7 {[%emt 0:00:57]} 60. Bf7 {[%emt 0:00:03]} Ke7 {[%emt 0:00:00]} 61. Bd5 {[%emt 0:00:10]} Kd6 {[%emt 0:01:58]} 1/2-1/2

[Event "Istanbul Open 2019"]
[Site "Istanbul"]
[Date "2019.08.27"]
[Round "3.17"]
[White "Hakkakifard Fard, Pedram"]
[Black "Uyanik, Toygun"]
[Result "1-0"]
[ECO "D02"]
[WhiteElo "1720"]
[BlackElo "1566"]
[Annotator "NA"]
[PlyCount "76"]
[EventDate "2019.08.26"]
[EventType "swiss"]
[EventCountry "TUR"]
[SourceTitle "playchess.com"]
[Source "ChessBase"]
[SourceQuality "1"]
[TimeControl "5400+30"]

1. d4 {[%emt 0:00:30]} Nf6 {[%emt 0:00:30]} 2. Bf4 {[%emt 0:00:30]} e6 {[%emt 0:02:30]} 3. e3 {[%emt 0:00:00]} c5 {[%emt 0:00:30]} 4. c3 {[%emt 0:00:00]} Nc6 {[%emt 0:00:00]} 5. Nd2 {[%emt 0:00:30]} d5 {[%emt 0:01:00]} 6. Bd3 {[%emt 0:00:00]} Bd6 {[%emt 0:01:30]} 7. Bg3 {[%emt 0:00:00]} O-O {[%emt 0:01:30]} 8. Ngf3 {[%emt 0:00:00]} Re8 {[%emt 0:00:00]} 9. Ne5 {[%emt 0:00:00]} Re7 {[%emt 0:09:00]} 10. h4 {[%emt 0:04:30]} Ne8 {[%emt 0:04:30]} 11. Ndf3 {[%emt 0:00:00]} f6 {[%emt 0:06:30]} 12. Bxh7+ {[%emt 0:02:00]} Kxh7 {[%emt 0:01:30]} 13. Ng5+ {[%emt 0:00:00]} Kg8 {[%emt 0:11:30]} 14. Ng6 {[%emt 0:21:00]} e5 {[%emt 0:36:30]} 15. Qh5 {[%emt 0:12:30]} fxg5 {[%emt 0:00:30]} 16. hxg5 {[%emt 0:22:30]} Bf5 {[%emt 0:15:20]} 17. Nxe7+ {[%emt 0:05:30]} Nxe7 {[%emt 0:02:21]} 18. dxe5 {[%emt 0:00:30]} Bc7 {[%emt 0:02:28]} 19. O-O-O {[%emt 0:02:30]} Bg6 {[%emt 0:00:32]} 20. Qf3 {[%emt 0:00:30]} Nf5 {[%emt 0:01:08]} 21. Bf4 {[%emt 0:06:30]} Ne7 {[%emt 0:00:35]} 22. Rh2 {[%emt 0:00:30]} Kf7 {[%emt 0:00:15]} 23. c4 {[%emt 0:04:03]} Qc8 {[%emt 0:00:47]} 24. e6+ {[%emt 0:02:47]} Kxe6 {[%emt 0:00:28]} 25. cxd5+ {[%emt 0:01:58]} Kd7 {[%emt 0:00:01]} 26. d6 {[%emt 0:02:06]} Bxd6 {[%emt 0:00:38]} 27. e4 {[%emt 0:00:18]} Kd8 {[%emt 0:00:52]} 28. Bxd6 {[%emt 0:01:14]} Nxd6 {[%emt 0:00:24]} 29. Rh8+ {[%emt 0:04:20]} Kc7 {[%emt 0:00:27]} 30. Rxc8+ {[%emt 0:01:18]} Rxc8 {[%emt 0:00:01]} 31. Qf4 {[%emt 0:00:39]} Rd8 {[%emt 0:00:19]} 32. e5 {[%emt 0:00:18]} Ndf5 {[%emt 0:01:15]} 33. Rxd8 {[%emt 0:01:31]} Kxd8 {[%emt 0:00:12]} 34. e6 {[%emt 0:00:04]} Nc6 {[%emt 0:00:40]} 35. g4 {[%emt 0:00:29]} Nfe7 {[%emt 0:00:44]} 36. Qf8+ {[%emt 0:00:35]} Kc7 {[%emt 0:00:08]} 37. Qxg7 {[%emt 0:00:23]} Kd6 {[%emt 0:00:47]} 38. f4 {[%emt 0:00:48]} Be4 {[%emt 0:01:08]} 1-0

[Event "Istanbul Open 2019"]
[Site "Istanbul"]
[Date "2019.08.27"]
[Round "3.18"]
[White "Nabitaeme, Marjaneh"]
[Black "Pektas, Gokdeniz"]
[Result "0-1"]
[ECO "A52"]
[WhiteElo "1708"]
[BlackElo "1652"]
[Annotator "NA"]
[PlyCount "52"]
[EventDate "2019.08.26"]
[EventType "swiss"]
[EventCountry "TUR"]
[SourceTitle "playchess.com"]
[Source "ChessBase"]
[SourceQuality "1"]
[TimeControl "5400+30"]

1. d4 {[%emt 0:06:30]} Nf6 {[%emt 0:00:30]} 2. c4 {[%emt 0:00:30]} e5 {[%emt 0:01:30]} 3. dxe5 {[%emt 0:00:30]} Ng4 {[%emt 0:00:00]} 4. Nf3 {[%emt 0:00:30]} Bc5 {[%emt 0:00:00]} 5. e3 {[%emt 0:00:30]} Nc6 {[%emt 0:00:30]} 6. Be2 {[%emt 0:00:00]} O-O {[%emt 0:00:00]} 7. O-O {[%emt 0:00:00]} Re8 {[%emt 0:00:00]} 8. a3 {[%emt 0:02:30]} a5 {[%emt 0:00:30]} 9. Nc3 {[%emt 0:02:30]} Ngxe5 {[%emt 0:00:30]} 10. b3 {[%emt 0:02:30]} Nxf3+ {[%emt 0:00:30]} 11. Bxf3 {[%emt 0:00:30]} Ne5 {[%emt 0:01:30]} 12. Bb2 {[%emt 0:01:30]} Ra6 {[%emt 0:00:30]} 13. Ne4 {[%emt 0:07:30]} Ba7 {[%emt 0:03:30]} 14. Bd4 {[%emt 0:06:30]} Bxd4 {[%emt 0:04:30]} 15. exd4 {[%emt 0:00:30]} Nxf3+ {[%emt 0:00:30]} 16. Qxf3 {[%emt 0:00:30]} Qh4 {[%emt 0:00:00]} 17. Rfe1 {[%emt 0:02:30]} Rae6 {[%emt 0:01:00]} 18. g3 {[%emt 0:07:30]} Qe7 {[%emt 0:00:00]} 19. Red1 {[%emt 0:05:30]} Rxe4 {[%emt 0:01:00]} 20. Qf5 {[%emt 0:00:30]} b6 {[%emt 0:00:30]} 21. c5 {[%emt 0:00:30]} bxc5 {[%emt 0:01:30]} 22. dxc5 {[%emt 0:00:30]} Bb7 {[%emt 0:00:30]} 23. Kf1 {[%emt 0:03:30]} Bc6 {[%emt 0:02:30]} 24. h4 {[%emt 0:03:30]} Re5 {[%emt 0:00:30]} 25. Qf4 {[%emt 0:00:30]} Qe6 {[%emt 0:00:30]} 26. g4 {[%emt 0:03:30]} Qxb3 {[%emt 0:01:30]} 0-1

[Event "Istanbul Open 2019"]
[Site "Istanbul"]
[Date "2019.08.27"]
[Round "3.19"]
[White "Can, Ilhan"]
[Black "Acikgoz, Akin"]
[Result "1-0"]
[ECO "B50"]
[WhiteElo "1683"]
[BlackElo "1656"]
[Annotator "NA"]
[PlyCount "73"]
[EventDate "2019.08.26"]
[EventType "swiss"]
[EventCountry "TUR"]
[SourceTitle "playchess.com"]
[Source "ChessBase"]
[SourceQuality "1"]
[TimeControl "5400+30"]

1. e4 {[%emt 0:00:30]} c5 {[%emt 0:00:30]} 2. Nf3 {[%emt 0:00:00]} d6 {[%emt 0:00:30]} 3. c3 {[%emt 0:00:00]} Nf6 {[%emt 0:00:30]} 4. Be2 {[%emt 0:00:00]} Bd7 {[%emt 0:04:30]} 5. d3 {[%emt 0:00:00]} Qc7 {[%emt 0:03:30]} 6. h3 {[%emt 0:00:30]} Bc6 {[%emt 0:00:30]} 7. b3 {[%emt 0:00:30]} Nbd7 {[%emt 0:01:30]} 8. Nbd2 {[%emt 0:01:30]} e6 {[%emt 0:03:30]} 9. O-O {[%emt 0:00:30]} Be7 {[%emt 0:01:30]} 10. Re1 {[%emt 0:00:30]} d5 {[%emt 0:03:30]} 11. Bf1 {[%emt 0:00:30]} dxe4 {[%emt 0:01:30]} 12. dxe4 {[%emt 0:00:30]} Ne5 {[%emt 0:03:30]} 13. Qc2 {[%emt 0:03:30]} Rd8 {[%emt 0:05:30]} 14. a4 {[%emt 0:00:30]} O-O {[%emt 0:01:30]} 15. Nh2 {[%emt 0:03:30]} Ng6 {[%emt 0:02:30]} 16. Nc4 {[%emt 0:04:30]} e5 {[%emt 0:02:30]} 17. g3 {[%emt 0:00:30]} Rd7 {[%emt 0:04:30]} 18. Bg2 {[%emt 0:00:30]} Rfd8 {[%emt 0:00:30]} 19. h4 {[%emt 0:01:30]} b6 {[%emt 0:05:30]} 20. Qe2 {[%emt 0:01:30]} h5 {[%emt 0:09:30]} 21. Bg5 {[%emt 0:05:30]} b5 {[%emt 0:03:30]} 22. axb5 {[%emt 0:03:30]} Bxb5 {[%emt 0:00:30]} 23. Bxf6 {[%emt 0:00:00]} Bxf6 {[%emt 0:01:30]} 24. Nf1 {[%emt 0:01:00]} Bxc4 {[%emt 0:05:30]} 25. bxc4 {[%emt 0:01:30]} Rd3 {[%emt 0:00:30]} 26. Ne3 {[%emt 0:00:30]} Rd2 {[%emt 0:03:30]} 27. Qxh5 {[%emt 0:00:30]} Rb8 {[%emt 0:01:30]} 28. Rab1 {[%emt 0:02:30]} Rbb2 {[%emt 0:00:30]} 29. Rxb2 {[%emt 0:00:30]} Rxb2 {[%emt 0:00:30]} 30. Nd5 {[%emt 0:01:30]} Qd8 {[%emt 0:03:30]} 31. Ra1 {[%emt 0:01:30]} a5 {[%emt 0:00:30]} 32. Qg4 {[%emt 0:00:30]} Nf8 {[%emt 0:04:30]} 33. Rxa5 {[%emt 0:01:30]} Nd7 {[%emt 0:03:30]} 34. Ra7 {[%emt 0:01:30]} Nb6 {[%emt 0:00:30]} 35. Rb7 {[%emt 0:01:30]} Nxc4 {[%emt 0:00:43]} 36. Rd7 {[%emt 0:00:30]} Qa5 {[%emt 0:03:45]} 37. Nxf6+ {[%emt 0:01:30]} 1-0

[Event "Istanbul Open 2019"]
[Site "Istanbul"]
[Date "2019.08.28"]
[Round "4.1"]
[White "Yaran, Siar"]
[Black "Shanava, Konstantine"]
[Result "1-0"]
[ECO "A27"]
[WhiteElo "2209"]
[BlackElo "2496"]
[Annotator "RC"]
[PlyCount "83"]
[EventDate "2019.08.26"]
[EventType "swiss"]
[EventCountry "TUR"]
[SourceTitle "playchess.com"]
[Source "ChessBase"]
[SourceQuality "1"]
[TimeControl "5400+30"]

1. c4 e5 2. Nc3 Nc6 3. Nf3 g6 4. d4 exd4 5. Nxd4 Bg7 6. Nxc6 bxc6 7. g3 Ne7 8. Bg2 O-O 9. O-O Rb8 10. Qa4 d6 11. c5 d5 12. Rd1 Bd7 13. e4 h6 14. Be3 Rxb2 15. Bd4 Bxd4 16. Qxd4 Rb8 17. exd5 cxd5 18. Bxd5 Nc6 19. Qe3 Qg5 20. Qxg5 hxg5 21. Ne4 Kg7 22. Nxg5 Rbd8 23. Nxf7 Rde8 24. Ng5 Nb4 25. Bb3 Bf5 26. Rd4 a5 27. Rad1 Kh6 28. h4 Nc6 29. Rf4 Ne5 30. Rd5 Kg7 31. Rfd4 Re7 32. Rd8 Ree8 33. R8d5 Re7 {[%emt 1:45:46]} 34. Ba4 {[%emt 1:43:41]} Ng4 {[%emt 0:00:44]} 35. Bd7 {[%emt 0:00:34]} Re1+ {[%emt 0:00:03]} 36. Kg2 {[%emt 0:00:41]} Re2 {[%emt 0:00:30]} 37. Bxf5 {[%emt 0:01:18]} Rxf2+ {[%emt 0:00:38]} 38. Kg1 {[%emt 0:01:05]} R8xf5 {[%emt 0:00:28]} 39. Rxf5 {[%emt 0:00:11]} gxf5 {[%emt 0:00:41]} 40. Rxg4 {[%emt 0:00:05]} Rxa2 {[%emt 0:00:27]} 41. Rd4 {[%emt 0:00:08]} Kg6 {[%emt 0:00:35]} 42. Ne6 {[%emt 0:01:05]} 1-0

[Event "Istanbul Open 2019"]
[Site "Istanbul"]
[Date "2019.08.28"]
[Round "4.3"]
[White "Abishli, Oghuz"]
[Black "Eren, Ataberk"]
[Result "0-1"]
[ECO "A11"]
[WhiteElo "2038"]
[BlackElo "2254"]
[Annotator "ChessBase"]
[PlyCount "118"]
[EventDate "2019.08.26"]
[EventType "swiss"]
[EventCountry "TUR"]
[SourceTitle "playchess.com"]
[Source "ChessBase"]
[SourceQuality "1"]
[TimeControl "5400+30"]

1. Nf3 d5 2. c4 c6 3. e3 Nf6 4. Nc3 Bf5 5. Qb3 Qb6 6. cxd5 Qxb3 7. axb3 Nxd5 8. Nxd5 cxd5 9. Nd4 Bd7 10. Nb5 Bxb5 11. Bxb5+ Nc6 12. d4 e6 13. Bd2 Kd7 14. Ke2 Bd6 15. h4 h5 16. f3 a6 17. Bd3 e5 18. dxe5 Bxe5 19. Bc3 d4 20. exd4 Bxd4 21. Be4 Bxc3 22. bxc3 Rhe8 23. Rhd1+ Kc7 24. Kf2 Rad8 25. Bd5 Ne5 26. Rd4 Rd7 27. Ra5 g6 28. g4 hxg4 29. fxg4 Red8 30. Bf3 Rxd4 31. cxd4 Nxf3 32. Kxf3 Rxd4 33. h5 Rd3+ 34. Kg2 gxh5 35. gxh5 Rxb3 36. h6 Rb6 37. Rh5 Rg6+ 38. Kf3 Rg8 39. h7 Rh8 40. Rh6 {[%emt 1:49:08]} Kd7 {[%emt 1:42:49]} 41. Kf4 {[%emt 0:00:30]} Ke7 {[%emt 0:00:39]} 42. Kg5 {[%emt 0:00:30]} a5 {[%emt 0:00:21]} 43. Rb6 {[%emt 0:00:17]} Rxh7 {[%emt 0:00:35]} 44. Rxb7+ {[%emt 0:00:02]} Kd6 {[%emt 0:00:06]} 45. Rb5 {[%emt 0:00:56]} f6+ {[%emt 0:00:06]} 46. Kxf6 {[%emt 0:00:16]} Ra7 {[%emt 0:00:04]} 47. Kf5 {[%emt 0:00:30]} Kc6 {[%emt 0:00:14]} 48. Rb1 {[%emt 0:00:49]} Kd5 {[%emt 0:00:05]} 49. Rd1+ {[%emt 0:00:31]} Kc4 {[%emt 0:00:05]} 50. Rc1+ {[%emt 0:00:04]} Kd4 {[%emt 0:00:17]} 51. Rd1+ {[%emt 0:00:13]} Kc3 {[%emt 0:00:08]} 52. Rc1+ {[%emt 0:00:10]} Kb2 {[%emt 0:01:28]} 53. Rc8 {[%emt 0:01:19]} Rb7 {[%emt 0:03:49]} 54. Ra8 {[%emt 0:00:08]} Rb5+ {[%emt 0:00:01]} 55. Ke4 {[%emt 0:00:09]} Rb4+ {[%emt 0:00:44]} 56. Kd3 {[%emt 0:00:11]} a4 {[%emt 0:00:21]} 57. Rh8 {[%emt 0:00:47]} a3 {[%emt 0:00:20]} 58. Rh2+ {[%emt 0:00:07]} Kb3 {[%emt 0:00:07]} 59. Kd2 {[%emt 0:01:18]} a2 {[%emt 0:00:12]} 0-1

[Event "Istanbul Open 2019"]
[Site "Istanbul"]
[Date "2019.08.28"]
[Round "4.6"]
[White "Nuri, Murad"]
[Black "Konuk, Ali"]
[Result "1-0"]
[ECO "B12"]
[WhiteElo "2291"]
[BlackElo "1791"]
[Annotator "NA"]
[PlyCount "75"]
[EventDate "2019.08.26"]
[EventType "swiss"]
[EventCountry "TUR"]
[SourceTitle "playchess.com"]
[Source "ChessBase"]
[SourceQuality "1"]
[TimeControl "5400+30"]

1. e4 {[%emt 0:00:30]} c6 {[%emt 0:00:30]} 2. d4 {[%emt 0:01:30]} d5 {[%emt 0:00:00]} 3. e5 {[%emt 0:00:00]} Bf5 {[%emt 0:00:00]} 4. Nf3 {[%emt 0:03:00]} e6 {[%emt 0:00:30]} 5. Be2 {[%emt 0:00:30]} Nd7 {[%emt 0:00:30]} 6. O-O {[%emt 0:01:30]} h6 {[%emt 0:00:30]} 7. b3 {[%emt 0:03:30]} Ne7 {[%emt 0:01:30]} 8. c4 {[%emt 0:02:30]} g5 {[%emt 0:01:30]} 9. Nc3 {[%emt 0:02:30]} Nb6 {[%emt 0:02:30]} 10. Be3 {[%emt 0:07:30]} Bg6 {[%emt 0:01:30]} 11. c5 {[%emt 0:02:30]} Nd7 {[%emt 0:00:30]} 12. b4 {[%emt 0:00:00]} Nf5 {[%emt 0:00:30]} 13. b5 {[%emt 0:01:00]} f6 {[%emt 0:01:30]} 14. bxc6 {[%emt 0:01:30]} bxc6 {[%emt 0:00:30]} 15. Qa4 {[%emt 0:01:30]} Qc7 {[%emt 0:00:00]} 16. exf6 {[%emt 0:00:00]} Kf7 {[%emt 0:02:00]} 17. Bd2 {[%emt 0:24:00]} Kxf6 {[%emt 0:02:30]} 18. g4 {[%emt 0:00:30]} Ne7 {[%emt 0:05:30]} 19. Ne5 {[%emt 0:00:30]} Nxe5 {[%emt 0:00:30]} 20. dxe5+ {[%emt 0:00:30]} Kg7 {[%emt 0:03:30]} 21. Qd4 {[%emt 0:01:30]} Kg8 {[%emt 0:15:30]} 22. Rae1 {[%emt 0:12:30]} Bg7 {[%emt 0:00:30]} 23. f4 {[%emt 0:09:30]} Rf8 {[%emt 0:01:30]} 24. fxg5 {[%emt 0:04:53]} Bxe5 {[%emt 0:02:30]} 25. Rxf8+ {[%emt 0:00:15]} Kxf8 {[%emt 0:00:30]} 26. Qf2+ {[%emt 0:03:21]} Ke8 {[%emt 0:01:30]} 27. gxh6 {[%emt 0:00:42]} d4 {[%emt 0:01:30]} 28. Nb5 {[%emt 0:00:47]} cxb5 {[%emt 0:01:30]} 29. Bxb5+ {[%emt 0:00:56]} Kd8 {[%emt 0:00:30]} 30. Bf4 {[%emt 0:01:44]} Bxf4 {[%emt 0:02:30]} 31. Qxd4+ {[%emt 0:00:01]} Nd5 {[%emt 0:00:30]} 32. Qxh8+ {[%emt 0:00:08]} Ke7 {[%emt 0:00:00]} 33. Qg7+ {[%emt 0:01:34]} Bf7 {[%emt 0:00:00]} 34. Be8 {[%emt 0:00:09]} Qxc5+ {[%emt 0:01:30]} 35. Kh1 {[%emt 0:00:55]} Kxe8 {[%emt 0:08:30]} 36. h7 {[%emt 0:00:04]} Ne7 {[%emt 0:02:30]} 37. h8=Q+ {[%emt 0:00:11]} Ng8 {[%emt 0:01:30]} 38. Qhxg8+ {[%emt 0:00:13]} 1-0

[Event "Istanbul Open 2019"]
[Site "Istanbul"]
[Date "2019.08.28"]
[Round "4.7"]
[White "Demirbas, Emre"]
[Black "Darban, Morteza"]
[Result "0-1"]
[ECO "B06"]
[WhiteElo "1879"]
[BlackElo "2280"]
[Annotator "ChessBase"]
[PlyCount "90"]
[EventDate "2019.08.26"]
[EventType "swiss"]
[EventCountry "TUR"]
[SourceTitle "playchess.com"]
[Source "ChessBase"]
[SourceQuality "1"]
[TimeControl "5400+30"]

1. e4 g6 2. d4 Bg7 3. Nc3 d6 4. f4 a6 5. Nf3 b5 6. Bd3 Bb7 7. O-O Nd7 8. e5 Nh6 9. Qe2 O-O 10. Be3 c5 11. dxc5 Ng4 12. Rad1 dxe5 13. Nxe5 Ndxe5 14. fxe5 Qc8 15. Be4 Bxe4 16. Nxe4 Nxe3 17. Qxe3 Qe6 18. Nc3 Qxe5 19. Qxe5 Bxe5 20. Nd5 Bxb2 21. Nxe7+ Kg7 22. Rd7 Ba3 23. c6 Rae8 24. Re1 Bxe7 25. Rexe7 Rxe7 26. Rxe7 Rc8 27. c7 Kf6 28. Rd7 Ke6 29. Rd3 Rxc7 30. c3 {[%emt 1:44:22]} Rd7 {[%emt 1:44:17]} 31. Re3+ {[%emt 0:00:30]} Kd5 {[%emt 0:00:38]} 32. Kf2 {[%emt 0:00:30]} Rd6 {[%emt 0:00:41]} 33. Rf3 {[%emt 0:00:30]} f5 {[%emt 0:00:06]} 34. Ke2 {[%emt 0:00:40]} Kc4 {[%emt 0:00:30]} 35. h4 {[%emt 0:00:39]} Re6+ {[%emt 0:00:30]} 36. Kd2 {[%emt 0:00:38]} Re4 {[%emt 0:00:30]} 37. g3 {[%emt 0:00:14]} Kd5 {[%emt 0:00:02]} 38. Rd3+ {[%emt 0:00:15]} Ke6 {[%emt 0:00:30]} 39. Rd8 {[%emt 0:00:29]} Ra4 {[%emt 0:00:12]} 40. Kd3 {[%emt 0:00:39]} Rxa2 {[%emt 0:00:08]} 41. Re8+ {[%emt 0:00:20]} Kf6 {[%emt 0:01:14]} 42. Kd4 {[%emt 0:00:21]} Ra4+ {[%emt 0:00:27]} 43. Kd5 {[%emt 0:00:17]} Re4 {[%emt 0:00:26]} 44. Ra8 {[%emt 0:00:38]} Ra4 {[%emt 0:01:17]} 45. Re8 {[%emt 0:00:05]} Rc4 {[%emt 0:00:18]} 0-1

[Event "Istanbul Open 2019"]
[Site "Istanbul"]
[Date "2019.08.28"]
[Round "4.8"]
[White "Yarar, Muammer Atakan"]
[Black "Aliakbarov, Anar"]
[Result "1-0"]
[ECO "E97"]
[WhiteElo "1779"]
[BlackElo "2265"]
[Annotator "ChessBase"]
[PlyCount "69"]
[EventDate "2019.08.26"]
[EventType "swiss"]
[EventCountry "TUR"]
[SourceTitle "playchess.com"]
[Source "ChessBase"]
[SourceQuality "1"]
[TimeControl "5400+30"]

1. d4 Nf6 2. c4 g6 3. Nc3 Bg7 4. e4 d6 5. Be2 O-O 6. Nf3 e5 7. Be3 Nc6 8. O-O Ng4 9. Bg5 f6 10. Bh4 g5 11. Bg3 Nh6 12. dxe5 fxe5 13. Nd5 g4 14. Bh4 gxf3 15. Bxd8 fxe2 16. Qxe2 Rxd8 17. Nxc7 Nd4 18. Qd3 Rb8 19. a4 Nf7 20. b4 Be6 21. Nxe6 Nxe6 22. g3 Nd4 23. f4 exf4 24. gxf4 Kh8 25. Kh1 Rg8 26. Rg1 Bf6 27. Rxg8+ Rxg8 28. Rg1 Rxg1+ 29. Kxg1 Nd8 30. e5 dxe5 31. fxe5 Bxe5 32. Qe4 Bf6 33. a5 N4c6 34. Qe8+ Kg7 35. Qd7+ {[%emt 1:43:37]} 1-0

[Event "Istanbul Open 2019"]
[Site "Istanbul"]
[Date "2019.08.28"]
[Round "4.10"]
[White "Emir, Emirhan"]
[Black "Citak, Selim"]
[Result "1/2-1/2"]
[ECO "A25"]
[WhiteElo "1952"]
[BlackElo "2263"]
[Annotator "NA"]
[PlyCount "60"]
[EventDate "2019.08.26"]
[EventType "swiss"]
[EventCountry "TUR"]
[SourceTitle "playchess.com"]
[Source "ChessBase"]
[SourceQuality "1"]
[TimeControl "5400+30"]

1. c4 {[%emt 0:01:30]} Nc6 {[%emt 0:00:30]} 2. Nc3 {[%emt 0:00:30]} e5 {[%emt 0:00:30]} 3. g3 {[%emt 0:00:30]} g6 {[%emt 0:00:30]} 4. Bg2 {[%emt 0:00:30]} Bg7 {[%emt 0:00:30]} 5. d3 {[%emt 0:00:00]} d6 {[%emt 0:00:00]} 6. e3 {[%emt 0:01:00]} f5 {[%emt 0:02:00]} 7. Nge2 {[%emt 0:00:30]} Nf6 {[%emt 0:00:30]} 8. Rb1 {[%emt 0:01:30]} Be6 {[%emt 0:06:30]} 9. Nd5 {[%emt 0:03:30]} a5 {[%emt 0:00:00]} 10. O-O {[%emt 0:04:30]} O-O {[%emt 0:00:00]} 11. Nec3 {[%emt 0:03:30]} g5 {[%emt 0:07:30]} 12. f4 {[%emt 0:06:30]} gxf4 {[%emt 0:00:30]} 13. gxf4 {[%emt 0:03:30]} Kh8 {[%emt 0:02:30]} 14. a3 {[%emt 0:03:30]} Rg8 {[%emt 0:01:30]} 15. b4 {[%emt 0:06:30]} axb4 {[%emt 0:00:30]} 16. axb4 {[%emt 0:00:30]} e4 {[%emt 0:14:30]} 17. Bb2 {[%emt 0:09:30]} Bxd5 {[%emt 0:03:30]} 18. Nxd5 {[%emt 0:01:30]} Nxd5 {[%emt 0:00:30]} 19. cxd5 {[%emt 0:00:30]} Ne7 {[%emt 0:00:30]} 20. dxe4 {[%emt 0:02:30]} fxe4 {[%emt 0:01:30]} 21. Kh1 {[%emt 0:01:30]} Bxb2 {[%emt 0:12:30]} 22. Rxb2 {[%emt 0:00:00]} Nf5 {[%emt 0:00:00]} 23. Bxe4 {[%emt 0:06:00]} Qf6 {[%emt 0:00:00]} 24. Re2 {[%emt 0:00:30]} Nh4 {[%emt 0:00:30]} 25. Qd4 {[%emt 0:05:30]} Qxd4 {[%emt 0:00:30]} 26. exd4 {[%emt 0:00:00]} Ra4 {[%emt 0:03:30]} 27. Bb1 {[%emt 0:14:00]} Rxb4 {[%emt 0:02:30]} 28. Re7 {[%emt 0:00:30]} Rg7 {[%emt 0:00:30]} 29. Re8+ {[%emt 0:00:30]} Rg8 {[%emt 0:00:30]} 30. Re7 {[%emt 0:00:30]} Rg7 {[%emt 0:01:30]} 1/2-1/2